Cogmind - Beta 10.2 @@@ ROGUE MODE // 2021.03.09 @ 14:43:00 // Winter2019/RPGLIKE Player: Yanriel Result: Destroyed by as-28392 with Assembled F-torch Performance ------------- Evolutions (0) 0 Regions Visited (3) 600 Robots Destroyed (43) 215 Value Destroyed (974) 974 Prototype IDs (25) 500 Alien Tech Used (0) 0 Bonus (214) 214 TOTAL SCORE: 2503 Bonus ------- High Alert Combat Kills 8 Aligned with FarCom 300 Friendly Fire -94 Cogmind --------- Core Integrity 0/600 Matter 500/500 Energy 650/650 System Corruption 3% Temperature Cool (20) Movement Rolling (90) Ox1 Location -10/Exiles Parts ------- > --- POWER (1) -------- Ion Engine > --- PROPULSION (1) --- Wheel > --- UTILITY (6) ------ High-capacity Battery High-capacity Matter Pod Improved Terrain Scanner Modified TNC Hacking Suite Trap Reconfigurator > --- WEAPON (1) ------- EM Pulse Gun > --- INVENTORY (0) ---- (None) Peak State ------------ > --- POWER ------------ Ion Engine > --- PROPULSION ------- Wheel > --- UTILITY ---------- High-capacity Battery High-capacity Matter Pod Improved Terrain Scanner Modified TNC Hacking Suite Trap Reconfigurator > --- WEAPON ----------- EM Pulse Gun > --- INVENTORY -------- (None) [Rating: 25] Favorites ----------- Power Ion Engine Engine Ion Engine Propulsion Wheel Wheel Wheel Utility Improved Terrain Scanner Device Improved Terrain Scanner Storage High-capacity Battery Processor Modified TNC Hackware Hacking Suite Weapon Rocket Launcher Energy Gun EM Pulse Gun Launcher Rocket Launcher Build | -11 -10 -10 -10 ------- Run | Scr Mat Min Exi Slots Evolved 5 | . 1 . 4 Power . | . . . . Propulsion . | . . . . Utility 5 | . 1 . 4 Weapon . | . . . . Parts Attached 13 | 4 5 . 4 Power 1 | 1 . . . Engine 1 | 1 . . . Core . | . . . . Reactor . | . . . . Propulsion 1 | 1 . . . Treads . | . . . . Leg . | . . . . Wheel 1 | 1 . . . Hover . | . . . . Flight . | . . . . Utility 6 | 1 1 . 4 Device 2 | 1 . . 1 Storage 2 | . . . 2 Processor 1 | . . . 1 Hackware 1 | . 1 . . Protection . | . . . . Artifact . | . . . . Weapon 5 | 1 4 . . Energy Gun 2 | 1 1 . . Energy Cannon . | . . . . Ballistic Gun . | . . . . Ballistic Cannon . | . . . . Launcher 3 | . 3 . . Special Weapon . | . . . . Impact Weapon . | . . . . Slashing Weapon . | . . . . Piercing Weapon . | . . . . Special Melee Weapon . | . . . . Unidentified Prototypes . | . . . . Parts Lost . | . . . . Power . | . . . . Propulsion . | . . . . Utility . | . . . . Weapon . | . . . . Highest Loss Streak . | . . . . Average Slot Usage (%) 98 | . 100 100 88 Engine 19 | . 21 20 14 Wheel 19 | . 21 20 14 Device 21 | . 21 20 21 Processor 1 | . . . 7 Hackware 15 | . 15 20 14 Energy Gun 7 | . 2 20 14 Launcher 12 | . 18 . . Naked Turns . | . . . . Heaviest Build 17 | 8 10 8 17 Greatest Support 10 | 10 10 10 10 Greatest Overweight (x) 1 | . . . 1 Average Overweight (x) . | . . . . Largest Inventory Capacity . | . . . . Average Capacity . | . . . . Most Carried . | . . . . Average Carried . | . . . . Final Capacity . | . . . . Final Carried . | . . . . Class Distribution -------------------- 100% | Mutant Dominant Class ---------------- Mutant | -10/Materials Mutant | -10/Mines Mutant | -10/Exiles Resources | -11 -10 -10 -10 ----------- Run | Scr Mat Min Exi Matter Collected 1311 | 240 883 129 59 Remotely . | . . . . Salvage Created 676 | 43 560 23 50 Parts 61 | 4 52 3 2 Haulers Intercepted 2 | . 2 . . Recyclers Shooed . | . . . . Parts Field Recycled . | . . . . Retrieved Matter . | . . . . Parts Self-Destructed . | . . . . Prevented . | . . . . Kills | -11 -10 -10 -10 ------- Run | Scr Mat Min Exi Combat Hostiles Destroyed 24 | . 24 . . AOE 24 | . 24 . . Classes Destroyed 9 | 1 8 . . Worker 6 | . 4 2 . Builder 1 | . 1 . . Tunneler 4 | 2 2 . . Hauler 2 | . 2 . . Recycler 1 | . 1 . . Operator 2 | . 2 . . Watcher 3 | . 3 . . Swarmer 6 | . 6 . . Grunt 18 | . 18 . . Best Kill Streak 10 | 2 10 2 . Combat Bots Only 8 | . 8 . . Max Kills in Single Turn 2 | 1 2 2 . Gunslinging . | . . . . Exploded 2 | . 2 . . Melee . | . . . . Uniques/NPCs Destroyed . | . . . . Combat | -11 -10 -10 -10 -------- Run | Scr Mat Min Exi Damage Taken 801 | . 545 102 154 Core 661 | . 450 88 123 Absorbed by Shields . | . . . . Redirected to Core 466 | . 298 55 113 Core Remaining (%) 100 | 100 . . . Volleys Fired 128 | 10 107 10 1 Largest 1 | 1 1 1 1 Hottest 50 | 50 40 40 40 Shots Fired 127 | 10 106 10 1 Gun 45 | 10 24 10 1 Cannon . | . . . . Launcher 82 | . 82 . . Special . | . . . . Kinetic . | . . . . Thermal 10 | 10 . . . Explosive 82 | . 82 . . Electromagnetic 35 | . 24 10 1 Robot Hit Streak 6 | 6 6 1 1 Robot Miss Streak 7 | 1 4 7 . Penetration Max . | . . . . Secondary Targets . | . . . . Shots Hit Robots 43 | 8 33 1 1 Core Hits 64 | 2 58 3 1 Critical Hits . | . . . . Critical Kills . | . . . . Critical Parts Destroyed . | . . . . Melee Attacks . | . . . . Impact . | . . . . Slashing . | . . . . Piercing . | . . . . Sneak Attacks . | . . . . Combat Hostiles . | . . . . Follow-up Attacks . | . . . . Damage Inflicted 3053 | 103 2739 119 92 Guns 239 | 103 92 32 12 Cannons . | . . . . Explosions 2814 | . 2647 87 80 Melee . | . . . . Ramming . | . . . . Kinetic . | . . . . Thermal 270 | 103 . 87 80 Explosive 2620 | . 2620 . . Electromagnetic 163 | . 119 32 12 Impact . | . . . . Slashing . | . . . . Piercing . | . . . . Highest Corruption 3 | . 3 3 3 Average Corruption 2 | . 2 3 3 Corruption Purged . | . . . . Effects 39 | . 27 5 7 Message Errors 10 | . 6 1 3 Matter Fused 13 | . 8 2 3 Heat Flow Errors 3 | . 2 1 . Energy Discharges 6 | . 4 1 1 Data Loss (minor) 6 | . 6 . . Weapon Failures 1 | . 1 . . Overload Shots . | . . . . Overflow Damage 28 | . 28 . . Projectiles . | . . . . Explosions 28 | . 28 . . Melee . | . . . . Knockbacks . | . . . . Impact . | . . . . Kinetic . | . . . . Secondary . | . . . . Self-Inflicted Damage 144 | . 123 . 21 Shots 7 | . 6 . 1 Rammed . | . . . . Targets Rammed . | . . . . Kicked . | . . . . Crushed . | . . . . Highest Temperature 269 | 60 269 138 12 Average Temperature 53 | 25 52 93 12 Received Heat Transfer 212 | . 192 . 20 Siege Activations . | . . . . Robots Corrupted . | . . . . Combat Hostiles . | . . . . Parts Fried . | . . . . Impact Corruptions . | . . . . Robots Melted . | . . . . Combat Hostiles . | . . . . Parts Melted 2 | 2 . . . Heat Transferred 446 | 296 . 50 100 Parts Sabotaged . | . . . . Parts Stolen . | . . . . Parts Stripped . | . . . . Power Chain Reactions 2 | . . 1 1 Missiles Intercepted . | . . . . Alert | -11 -10 -10 -10 ------- Run | Scr Mat Min Exi Peak Influence 434 | 10 434 110 . Initial 100 | . . 100 . Average 191 | 6 272 102 . Maximum Alert Level 2 | . 2 . . Low Security (%) 47 | 100 18 100 . Level 1 44 | . 68 . . Level 2 8 | . 12 . . Level 3 . | . . . . Level 4 . | . . . . Level 5 . | . . . . High Security . | . . . . Max Security . | . . . . Squads Dispatched 8 | . 8 . . Investigation 6 | . 6 . . Extermination . | . . . . Reinforcement 2 | . 2 . . Assault . | . . . . Garrison . | . . . . Intercept . | . . . . Construction Impeded . | . . . . Haulers Reinforced . | . . . . Stealth | -11 -10 -10 -10 --------- Run | Scr Mat Min Exi Distress Signals 2 | . 2 . . Communications Jammed . | . . . . Distress Signals . | . . . . Times Spotted 51 | . 36 7 8 Peak Tracking Total 11 | . 9 6 11 Tactical Retreats 2 | . . 1 1 Traps | -11 -10 -10 -10 ------- Run | Scr Mat Min Exi Traps Triggered 5 | . 5 . . Indirectly . | . . . . Trap Hack Attempts . | . . . . Triggered . | . . . . Disarmed . | . . . . Reprogrammed . | . . . . Reused . | . . . . Traps Extracted . | . . . . Installed . | . . . . Triggered . | . . . . Machines | -11 -10 -10 -10 ---------- Run | Scr Mat Min Exi Machines Disabled 16 | . 16 . . Max in Single Turn 1 | . 1 . . Machines Sabotaged . | . . . . Garrisons Compromised . | . . . . Overloaded Fab Kills . | . . . . Fab Network Shutdowns . | . . . . Hacking | -11 -10 -10 -10 --------- Run | Scr Mat Min Exi Machines Accessed 9 | . 8 . 1 Terminals 6 | . 6 . . Fabricators . | . . . . Repair Stations . | . . . . Recycling Units 2 | . 2 . . Scanalyzers . | . . . . Garrison Access . | . . . . Total Hacks 28 | . 27 . 1 Successful 20 | . 19 . 1 Failed 8 | . 8 . . Catastrophic 2 | . 2 . . Database Lockouts . | . . . . Manual 27 | . 26 . 1 Terminals 25 | . 25 . . Fabricators . | . . . . Repair Stations . | . . . . Recycling Units 2 | . 2 . . Scanalyzers . | . . . . Garrison Access . | . . . . Terminal Hacks 12 | . 11 . 1 Prototype ID Bank 1 | . 1 . . Level Access Points 1 | . 1 . . Branch Access Points 1 | . 1 . . Alert Level 1 | . 1 . . Unreport Threat 2 | . 2 . . Disarm Traps 2 | . 2 . . Investigation Status 1 | . 1 . . Registered Components 1 | . 1 . . Zone Layout 1 | . 1 . . EX-Prototype ID Bank 1 | . . . 1 Fabricator Hacks . | . . . . Repair Station Hacks . | . . . . Recycling Unit Hacks . | . . . . Scanalyzer . | . . . . Garrison Access Hacks . | . . . . Unauthorized Hacks 8 | . 8 . . Terminals 6 | . 6 . . Botnet 6 | . 6 . . Fabricators . | . . . . Repair Stations . | . . . . Recycling Units 2 | . 2 . . Tunnel 2 | . 2 . . Scanalyzers . | . . . . Garrison Access . | . . . . Data Cores Recovered . | . . . . Used . | . . . . Hacking Detections 6 | . 6 . . Full Trace Events 5 | . 5 . . Feedback Events . | . . . . Feedback Blocked . | . . . . Robot Schematics Acquired . | . . . . Robots Built . | . . . . Matter . | . . . . Time . | . . . . Total Robot Build Rating . | . . . . Part Schematics Acquired . | . . . . Parts Built . | . . . . Matter . | . . . . Time . | . . . . Total Part Build Rating . | . . . . Parts Repaired . | . . . . Time . | . . . . Parts Recycled . | . . . . Recycled Matter . | . . . . Retrieved Matter . | . . . . Retrieved Components . | . . . . Parts Scanalyzed . | . . . . Part Schematics Acquired . | . . . . Parts Damaged . | . . . . Bothacking | -11 -10 -10 -10 ------------ Run | Scr Mat Min Exi Used RIF Installer . | . . . . Robots Hacked . | . . . . Non-combat . | . . . . Combat . | . . . . Robot Hacks Applied . | . . . . Relay Couplers Released . | . . . . Robots Rewired . | . . . . Allies Hacked . | . . . . Hacks Repelled . | . . . . Allies | -11 -10 -10 -10 -------- Run | Scr Mat Min Exi Total Allies 2 | . . 2 . Largest Group 2 | . . 2 2 Highest-Rated Group 49 | . . 49 49 Highest-Rated Ally 31 | . . 31 31 Total Orders . | . . . . Ally Attacks 8 | . . 8 . Total Damage 124 | . . 124 . Kills 3 | . . 3 . Allies Corrupted . | . . . . Allies Melted . | . . . . Intel | -11 -10 -10 -10 ------- Run | Scr Mat Min Exi Robot Analysis Total . | . . . . Derelict Logs Recovered 1 | . . 1 . Drone Launches . | . . . . Drone Recoveries . | . . . . Exploration | -11 -10 -10 -10 ------------- Run | Scr Mat Min Exi Turns Passed 3053 | 553 1731 403 366 Spaces Moved 2620 | 192 1608 398 422 Core 1 | 1 . . . Treads . | . . . . Legs . | . . . . Wheels 2619 | 191 1608 398 422 Hover . | . . . . Flight . | . . . . Fastest Speed 50 | 50 80 80 80 Average Speed 80 | 79 80 80 81 Slowest Speed 90 | 80 80 80 90 Overloaded Moves . | . . . . Propulsion Burnouts . | . . . . Robots Hopped . | . . . . Cave-ins Triggered . | . . . . Exploration Rate (%) 65 | 21 98 69 74 Regions Visited 3 Branch Regions 2 Pre-discovered Areas 2 | . 2 . . Known Exits Taken 1 | . 1 . . Unknown Exits Taken 2 | 1 . 1 . Scrap Searched 1 | . . 1 . Spaces Dug 41 | . 41 . . Terrain Destroyed 587 | . 583 . 4 Melee . | . . . . Projectile . | . . . . AOE 587 | . 583 . 4 Terrain Rammed . | . . . . Walls Destroyed . | . . . . Machines Disabled . | . . . . Actions | -11 -10 -10 -10 --------- Run | Scr Mat Min Exi Total 3437 | 579 1945 472 441 Wait 672 | 374 219 65 14 Move 2617 | 191 1607 397 422 Hop . | . . . . Pick Up . | . . . . Fast Attach 12 | 4 4 . 4 Attach . | . . . . Detach . | . . . . Swap 1 | . 1 . . Drop 4 | . 4 . . Fire 128 | 10 107 10 1 Melee . | . . . . Ram . | . . . . Kick . | . . . . Crush . | . . . . Escape Stasis . | . . . . Rewire . | . . . . Trap . | . . . . Miscellaneous 3 | . 3 . . Route ------- -11/Scrapyard -10/Materials (discovered 4 exits: *Mat x3 / *Min) -10/Mines (discovered 2 exits: *Mat / *Exi) -10/Exiles History --------- Turn | Location | Event 9 | -11/Scrapyard | Discovered new exit (range 16) 554 | -11/Scrapyard | Entered Materials 555 | -10/Materials | Build established: Mutant 628 | -10/Materials | Discovered new exit (range 16) 684 | -10/Materials | Destroyed 8 combat bots 716 | -10/Materials | Discovered new exit (range 10) 781 | -10/Materials | Reached level 2 825 | -10/Materials | Discovered new exit (range 13) 984 | -10/Materials | Upgraded with Utility slot (x1) 1026 | -10/Materials | Discovered new exit (range 16) 1186 | -10/Materials | Identified exit to Mines 1186 | -10/Materials | Identified exit to Materials 1469 | -10/Materials | Reached level 3 1505 | -10/Materials | Core integrity fell below 50% 2193 | -10/Materials | Reached level 4 2285 | -10/Materials | Entered Mines 2327 | -10/Mines | Discovered exit to Materials (range 15) 2354 | -10/Mines | Assembled infested the area 2416 | -10/Mines | Learned location of 1 exit from Materials 2630 | -10/Mines | Deemed a non-threat by the Exiles lab entrance 2630 | -10/Mines | Discovered new exit (range 5) 2688 | -10/Mines | Entered Exiles 2688 | -10/Exiles | Accompanied by 2 allies 2708 | -10/Exiles | Met 8R-AWN 2718 | -10/Exiles | Led the pair of lost Derelicts to a safe place 2721 | -10/Exiles | Met EX-HEX 2782 | -10/Exiles | Met EX-BIN 2791 | -10/Exiles | Aligned with FarCom system 2791 | -10/Exiles | Given EX-Vault access code 2811 | -10/Exiles | Opened EX-Vault 2815 | -10/Exiles | Upgraded with Utility slot (x4) 2816 | -10/Exiles | Found Modified TNC 2819 | -10/Exiles | Found Trap Reconfigurator 2841 | -10/Exiles | Warned to stay clear of 0b10 Research branches 2863 | -10/Exiles | Met EX-DEC 2890 | -10/Exiles | Visited The Gauntlet 3044 | -10/Exiles | Attacked by the Exiles 3044 | -10/Exiles | Core integrity fell below 20% 3054 | -10/Exiles | Destroyed by as-28392 with Assembled F-torch Last Messages --------------- EX-BIN: Oh yeah, I'd suggest you stay away from the 0b10 Research branches, since the FarCom signals could be picked up there, but you're welcome to try if you really want to. And if we have to leave here due to unforeseen circumstances, don't worry the FarCom system will continue to maintain contact via our distributed network. EX-BIN: And don't even think about spreading that code around. We're gonna change it right after you leave. Most certainly not to something like 1234 which I did last time as a little joke and some thief managed to sneak in here and steal a few of HEX's prototypes. 02858_ System corrupted: Matter fused (-5). EX-DEC: Ah I see we have a visitor. One wrong move in here and I'll invert your atomic chain! 02865_ EX-DEC: "Oops, I hope HEX didn't hear that..." 02926_ System corrupted: Energy discharge (-80). 02994_ Extracted 1 energy. 02994_ Acquired Hcp. Battery. 02996_ Extracted 49 matter. 02998_ Acquired Hcp. Matter Pod. 03037_ IR VRH#MUWZ 1JE6PLK<5NK 03043_ Chain reaction triggered in Ion Engine. 03043_ A-02 Transporter destroyed. 03044_ EXILES: Hostile robot within lab perimeter. Defensive protocols time, folks! 03045_ Acquired 10 matter. Map ----- +----------------------------------------------------+ | #####?" "##########" """ # ""?????????? | | #?### ""##########" """""""""#?"??##??????? | | #####?" ""###?#?####" ########### """##??????? | | ####### #??########"" ###?############???????? | | ####### ##########"" #############??##??????? | | #####X# #"###""""""" #####?#####??##?####?##? | | """""" " "" ###?##########?#######? | | "" """ " #####"""""""""####?### | | " " " """ """"####### | | "" " ####?# | | " """#??##? | | " "###### | | " "###### | | ""##### | | "" """""" """### | | ######""" "### | | ""###########""" ##? | | " """#############""" ## | | """##############"""" # | | ""##############"" | | ###;;;########"""" z | | #;a%a####""" | | = """" | | a ca | | "" a a a # | | @a a " ## | | " "" """ ""## | | """ ""## ##""" " " ""#" "### | | " ""#### ######""" """##"""""""##?? | | """"##### #?#?####""""############## | | "" """##### ###########??##########?## | | ""#####! " #####?#?#?#?#??#####?## | | "" """######" ??####?#??#?#####??#??## | | #""" #######" "###?#?????#??##?####?## | | ##"""" ########!!""!"##?????????#?#?####?### | | #### ##############??#????????????#??####? | | ?####### #########?#?###???#??????????????????# | | ###?#?### ###########?#??#?????????????????????? | | ?######## ###########?#??????#?????????????????? | | ###?#?### #######?####??????#??????????????????? | | ?######## ####?##?###??????????????????????????? | | #######?# ###??##?#?#?##???????????????????????? | | ?""""#### ###???##?#??##???????????????????????? | | "?"""#### #?##?#???#?###???????????????????????? | | """"#### ########?#?#?????????????????????????? | | ?"""#?## ##?#######?##????????????????????????? | | ???"?### ##???####?##?????????????????????????? | | """###### #############????????????????????????? | | """""" """""""#???""????????????????????????? | | "#""???????????????????????????? | +----------------------------------------------------+ Best States ------------- Heat Dissipation 25 Energy Generation 10 Energy Capacity 650 Matter Stores 500 Matter Capacity 500 Sight Range 16 Terrain Scan Range 16 Terrain Scan Density 410 Evasion (%) 44 Offensive Hacking 10 Item Schematics ----------------- None Robot Schematics ------------------ None Fabricated ------------ Nothing Alien Tech Used ----------------- None Achievements -------------- None Challenges ------------ None RPGLIKE | -11 -10 -10 -10 --------- Run | Scr Mat Min Exi Levels Raised 3 | . 3 . . XP Earned 8604 | 3000 4754 500 350 XP Spent 5940 | 440 500 . 5000 Upgrades 9 | 4 1 . 4 Utility Slot 5 | . 1 . 4 Terrain Scan Density 4 | 4 . . . Protomatter Created 73 | . 73 . . Integrity Restored 60 | . 60 . . Core 60 | . 60 . . Protomatter Decayed . | . . . . Game ------ Seed CatalystWeaponAutohacker Manual? 0 Play Time 00:28:23 Cumulative 69.1 hours Start 2021.03.09 @ 14:09:26 End 2021.03.09 @ 14:43:00 Sessions 1 Manual Loads 0 Difficulty Rogue Special Mode Winter2019/RPGLIKE Game No. 24 Rogue 24 Adventurer 0 Explorer 0 Win Type - Total 4 Types 3/0/0/0/0/0/0/0/1 Lore% 38 Gallery% 51 Achievement% 53 Wizard Run 0 Options --------- ASCII 0 Keyboard 0 Movement Mouse Keybinds 0 Fullscreen 1 Font 18/SmallcapsGlow Map View 112x50 Tactical HUD 1 Map Filters NONE Filters NONE Steam 1 RUN: a56e28e6-4371-42f2-837a-14424a13ec55